bitfinex/quotes_BTCUSD_20230113
["timestamp","ask_amount","ask_price","bid_price","bid_amount"]
[1673607372067,0.0002,19018.0,19017.0,1.058188]
[1673607372350,0.0002,19018.0,19017.0,0.727554]
[1673607372606,0.0002,19018.0,19017.0,1.38104245]
[1673607372904,0.0002,19018.0,19017.0,0.93785894]
[1673607373166,0.0002,19018.0,19017.0,1.4077867]
[1673607373422,0.0002,19018.0,19017.0,2.05741045]
[1673607373946,0.00130372,19020.0,19017.0,1.6791867]
[1673607374207,0.00130372,19020.0,19019.0,0.1]
[1673607374462,0.00130372,19020.0,19019.0,0.427554]
[1673607374716,0.00130372,19020.0,19019.0,0.95582516]
[1673607375740,0.00130372,19020.0,19019.0,1.25582516]
[1673607376253,0.00130372,19020.0,19019.0,1.25588516]
[1673607378069,0.00130372,19020.0,19019.0,1.26438516]
[1673607378070,0.00130372,19020.0,19019.0,1.26431567]
[1673607378592,0.61159405,19023.0,19020.0,0.10086473]
[1673607378857,0.61159405,19023.0,19021.0,0.327554]
[1673607379117,0.61159405,19023.0,19022.0,0.427554]
[1673607379641,0.61063983,19023.0,19022.0,0.427554]
[1673607379928,0.63259695,19024.0,19022.0,0.427554]
[1673607380188,0.63259695,19024.0,19023.0,0.327554]
[1673607380461,0.01609695,19024.0,19023.0,0.327554]
[1673607381232,0.01589695,19024.0,19023.0,0.327554]
[1673607381488,0.01589695,19024.0,19023.0,0.427554]
[1673607382276,0.01719447,19024.0,19023.0,0.427554]
[1673607382565,0.01719447,19024.0,19023.0,0.327554]
[1673607382819,0.01719447,19024.0,19022.0,0.80435959]
[1673607383678,0.01719447,19024.0,19023.0,0.327554]
[1673607383952,0.01719447,19024.0,19023.0,0.1]
[1673607384202,0.01719447,19024.0,19023.0,0.427554]
[1673607384722,0.01719447,19024.0,19023.0,0.03419992]
[1673607384723,0.58110013,19024.0,19023.0,0.03419992]
[1673607384989,0.17249447,19024.0,19023.0,0.03419992]
[1673607385765,0.17249447,19024.0,19020.0,0.00086473]
[1673607386039,0.23402216,19023.0,19020.0,0.00086473]
[1673607386298,0.1548,19021.0,19020.0,0.00086473]
[1673607386835,0.54412216,19021.0,19020.0,0.00086473]
[1673607387089,0.4101,19021.0,19020.0,0.00086473]
[1673607387348,0.1548,19021.0,19020.0,0.00086473]
[1673607387640,0.6397,19022.0,19020.0,0.00086473]
[1673607387896,0.1,19021.0,19020.0,0.00086473]
[1673607388161,0.74509044,19021.0,19020.0,0.00086473]
[1673607388476,0.6397,19022.0,19020.0,0.00086473]
[1673607388742,0.6397,19022.0,19020.0,0.5350091]
[1673607389298,0.6397,19022.0,19020.0,0.00086473]
[1673607389825,0.69467319,19021.0,19020.0,0.04686473]
[1673607390382,0.28932216,19021.0,19020.0,0.04686473]
[1673607390639,0.81306754,19021.0,19020.0,0.04686473]
[1673607390891,0.2553,19021.0,19020.0,0.04686473]
[1673607391151,0.3448,19021.0,19020.0,0.04686473]
[1673607391671,0.2553,19021.0,19020.0,0.04686473]
[1673607392712,0.4105,19021.0,19020.0,0.04686473]
[1673607393001,0.54452216,19021.0,19020.0,0.04686473]
[1673607393251,0.7105,19021.0,19020.0,0.04686473]
[1673607393535,0.6105,19021.0,19020.0,0.04686473]
[1673607393790,0.78480158,19021.0,19020.0,0.04686473]
[1673607394568,1.72022791,19021.0,19020.0,0.04686473]
[1673607395071,1.95591741,19021.0,19020.0,0.04686473]
[1673607396401,2.11304375,19021.0,19020.0,0.04686473]
[1673607396654,1.49879108,19021.0,19020.0,0.04686473]
[1673607396920,1.65559659,19021.0,19020.0,0.04686473]
[1673607397174,1.65559659,19021.0,19020.0,0.25716967]
[1673607397175,0.80181189,19021.0,19020.0,0.25716967]
[1673607397702,0.80181189,19021.0,19020.0,0.04686473]
[1673607399345,0.70181189,19021.0,19020.0,0.04686473]
[1673607399610,0.795,19022.0,19020.0,0.04686473]
[1673607399871,0.795,19022.0,19020.0,0.68404568]
[1673607399872,1.16617684,19022.0,19020.0,0.68404568]
[1673607400360,1.16617684,19022.0,19020.0,0.58404568]
[1673607400362,1.16617684,19022.0,19020.0,0.04686473]
[1673607400901,0.6397,19022.0,19020.0,0.84692537]
[1673607401159,0.6397,19022.0,19021.0,0.54485727]
[1673607401414,0.6397,19022.0,19021.0,0.87241127]
[1673607401415,0.5397,19022.0,19021.0,0.87241127]
[1673607401674,0.0181628,19024.0,19022.0,0.1]
[1673607401938,0.0181628,19024.0,19023.0,0.327554]
[1673607402472,0.01739447,19024.0,19023.0,0.327554]
[1673607402742,0.01739687,19024.0,19022.0,0.1]
[1673607403012,0.01739687,19024.0,19023.0,0.327554]
[1673607403792,0.01719687,19024.0,19023.0,0.8876187]
[1673607404823,0.01719687,19024.0,19023.0,0.5600647]
[1673607405575,0.01719687,19024.0,19023.0,0.6060647]
[1673607407398,0.01719687,19024.0,19023.0,1.19305894]
[1673607407654,0.01719687,19024.0,19023.0,1.46586086]
[1673607407993,0.01719687,19024.0,19023.0,1.47436086]
[1673607408433,0.01719687,19024.0,19023.0,1.57436086]
[1673607409247,0.01719687,19024.0,19023.0,0.791254]
[1673607409999,0.01719687,19024.0,19023.0,1.4725079]
[1673607410245,0.01719687,19024.0,19023.0,0.791254]
[1673607410553,0.0002,19026.0,19024.0,0.111359]
[1673607410780,0.0002,19026.0,19025.0,1.49219356]
[1673607411040,0.0002,19026.0,19025.0,2.06350356]
[1673607411305,0.01595761,19027.0,19025.0,1.07446086]
[1673607411566,0.01595761,19027.0,19026.0,0.9191779]
[1673607411847,0.01595761,19027.0,19026.0,1.0191779]
[1673607412117,0.01595761,19027.0,19026.0,0.9537867]
[1673607412379,0.01595761,19027.0,19026.0,1.89219356]
[1673607412639,0.01609564,19028.0,19027.0,0.1]
[1673607412913,0.01609564,19028.0,19027.0,2.15497356]
[1673607413175,0.01609564,19028.0,19027.0,1.85497356]
[1673607413442,0.01609564,19028.0,19027.0,0.336054]
[1673607413719,0.64042306,19027.0,19024.0,1.13733337]
[1673607414009,0.13402216,19026.0,19024.0,0.65422651]
[1673607414257,0.13402216,19026.0,19025.0,0.327554]
[1673607414536,0.01609564,19028.0,19025.0,0.327554]
[1673607414537,0.01609564,19028.0,19025.0,1.01570294]
[1673607414793,0.57050632,19028.0,19026.0,0.327554]
[1673607415053,0.57050632,19028.0,19027.0,0.327554]
[1673607415054,0.01609564,19028.0,19027.0,0.327554]
[1673607415325,0.01609564,19028.0,19027.0,0.53785894]
[1673607415577,0.01609564,19028.0,19027.0,0.427554]
[1673607416068,0.01609564,19028.0,19027.0,0.727554]
[1673607416324,0.01609564,19028.0,19027.0,1.36596086]
[1673607416612,0.01609564,19028.0,19027.0,0.882854]
[1673607416853,0.01609564,19028.0,19027.0,1.09687799]
[1673607417157,0.01609564,19028.0,19027.0,0.99687799]
[1673607418226,0.01609564,19028.0,19027.0,0.66932399]
[1673607418506,0.66960877,19028.0,19025.0,0.74468777]
[1673607418787,0.66960877,19028.0,19026.0,0.67850007]
[1673607418788,0.80363093,19028.0,19026.0,0.67850007]
[1673607419058,0.01609564,19028.0,19027.0,0.1]
[1673607419328,0.01609564,19028.0,19027.0,0.427554]
[1673607419580,0.01609564,19028.0,19027.0,1.11180112]
[1673607420319,0.01609564,19028.0,19027.0,0.427554]
[1673607420603,0.01609564,19028.0,19027.0,0.727554]
[1673607421409,0.01609564,19028.0,19027.0,0.882254]
[1673607421681,0.01609564,19028.0,19027.0,1.89159356]
[1673607422490,0.01530046,19028.0,19027.0,1.89159356]
[1673607422754,0.01977204,19029.0,19028.0,0.12198756]
[1673607423017,0.01977204,19029.0,19028.0,2.06748353]
[1673607423283,0.0188176,19029.0,19028.0,2.06748353]
[1673607423551,0.0188176,19029.0,19028.0,2.75594114]
[1673607424086,0.15283976,19029.0,19028.0,0.44824397]
[1673607424090,0.15283976,19029.0,19028.0,1.0565278]
[1673607424091,0.0188176,19029.0,19028.0,1.0565278]
[1673607424351,0.0188176,19029.0,19028.0,0.99177567]
[1673607424918,0.0188176,19029.0,19028.0,0.89307326]
[1673607425210,0.59236297,19029.0,19028.0,0.02198756]
[1673607425742,0.0188176,19029.0,19028.0,0.72644899]
[1673607426019,0.0188176,19029.0,19028.0,1.0860792]
[1673607426020,1.76e-05,19029.0,19028.0,1.0860792]
[1673607426307,7.405e-05,19030.0,19029.0,0.4168]
[1673607426599,0.01774555,19033.0,19030.0,0.1]
[1673607426890,0.01677451,19033.0,19032.0,0.3094]
[1673607427162,0.01677451,19033.0,19032.0,1.9565985]
[1673607427420,0.01803002,19035.0,19034.0,0.4168]
[1673607427421,0.01707298,19035.0,19034.0,0.4168]
[1673607427694,0.24215342,19044.0,19036.0,0.3168]
[1673607427695,0.00099078,19039.0,19036.0,0.3168]
[1673607427979,0.02277342,19044.0,19037.0,1.8471985]
[1673607427980,0.65975039,19043.0,19037.0,1.8471985]
[1673607428242,0.51639095,19041.0,19038.0,1.0209658]
[1673607428524,0.0002,19040.0,19039.0,0.427554]
[1673607429327,0.0002,19040.0,19039.0,1.61939164]
[1673607429612,0.0002,19040.0,19039.0,2.1024985]
[1673607429924,0.02375971,19044.0,19040.0,0.39941312]
[1673607430234,0.02277342,19044.0,19042.0,0.3168]
[1673607430510,0.02441889,19045.0,19044.0,0.01531361]
[1673607430823,0.02441889,19045.0,19044.0,0.49816761]
[1673607431097,0.02441889,19045.0,19044.0,0.34286761]
[1673607432461,0.02441889,19045.0,19044.0,0.74286761]
[1673607432732,0.02441889,19045.0,19044.0,0.98288259]
[1673607433008,0.02441889,19045.0,19044.0,1.75220717]
[1673607433289,0.02441889,19045.0,19044.0,2.16934717]
[1673607433568,0.02441889,19045.0,19044.0,2.32464717]
[1673607433851,0.0241038,19046.0,19044.0,2.32464717]
[1673607433852,0.0241038,19046.0,19045.0,0.4168]
[1673607434131,0.99505633,19050.0,19046.0,0.1]
[1673607434400,0.99602881,19050.0,19049.0,0.2553]
[1673607434660,0.99602881,19050.0,19049.0,2.1024985]
[1673607434918,0.99602881,19050.0,19049.0,1.7243867]
[1673607434919,0.99505633,19050.0,19049.0,1.7243867]
[1673607435202,0.67643933,19050.0,19049.0,2.20826228]
[1673607435469,0.67643933,19050.0,19049.0,1.4075867]
[1673607436214,0.67643933,19050.0,19049.0,2.0476376]
[1673607436484,0.67643933,19050.0,19049.0,1.7476376]
[1673607437012,0.67643933,19050.0,19049.0,1.5938376]
[1673607437821,0.67643933,19050.0,19049.0,2.0478376]
[1673607438109,0.67643933,19050.0,19049.0,2.57630797]
[1673607438655,0.67643933,19050.0,19049.0,1.69703797]
[1673607438930,0.81046149,19050.0,19049.0,0.490114]
[1673607439211,1.18817333,19050.0,19049.0,6e-05]
[1673607439469,1.34239224,19050.0,19049.0,6e-05]
[1673607439741,0.67643933,19050.0,19049.0,6e-05]
[1673607440028,0.98703933,19050.0,19049.0,6e-05]
[1673607440591,0.67643933,19050.0,19049.0,6e-05]
[1673607441152,1.25113933,19050.0,19049.0,6e-05]
[1673607442236,1.25113933,19050.0,19048.0,6e-05]
[1673607442490,0.18802216,19049.0,19048.0,6e-05]
[1673607442756,0.054,19049.0,19048.0,6e-05]
[1673607443024,0.05529941,19049.0,19048.0,6e-05]
[1673607443301,0.00129941,19049.0,19048.0,6e-05]
[1673607444033,0.7022842,19049.0,19048.0,6e-05]
[1673607444035,0.23532157,19049.0,19048.0,6e-05]
[1673607444299,0.38396766,19049.0,19048.0,6e-05]
[1673607444564,1.14946766,19049.0,19048.0,6e-05]
[1673607444824,1.3154455,19049.0,19048.0,6e-05]
[1673607445132,1.3154455,19049.0,19040.0,0.48192108]
[1673607445133,0.1,19048.0,19040.0,0.48192108]
[1673607445380,0.1,19048.0,19044.0,0.00019]
[1673607445381,1.12635997,19047.0,19044.0,0.00019]
[1673607445645,0.1655,19045.0,19044.0,0.00019]
[1673607445928,0.74937101,19048.0,19044.0,0.00019]
[1673607445929,0.46812386,19048.0,19044.0,0.21049494]
[1673607446206,0.30352386,19048.0,19045.0,0.21030494]
[1673607446498,0.10098386,19048.0,19045.0,0.21030494]
[1673607446768,0.10098386,19048.0,19044.0,0.00019]
[1673607447030,0.23500602,19048.0,19044.0,0.21049494]
[1673607447597,0.69913244,19047.0,19044.0,0.21030494]
[1673607447906,0.00098386,19048.0,19045.0,0.81587917]
[1673607448169,0.00098386,19048.0,19046.0,0.53785894]
[1673607448446,0.70954251,19049.0,19047.0,0.427554]
[1673607448720,0.00129941,19049.0,19047.0,0.31030494]
[1673607448983,0.00129941,19049.0,19048.0,0.327554]
[1673607449260,0.00129941,19049.0,19048.0,1.10870703]
[1673607449529,0.00129941,19049.0,19048.0,1.11720703]
[1673607449792,0.63923077,19049.0,19048.0,0.336054]
[1673607450069,0.6236082,19048.0,19046.0,0.52722147]
[1673607450333,0.75763036,19048.0,19047.0,0.0085]
[1673607450646,0.6236082,19048.0,19047.0,0.0085]
[1673607450907,0.6236082,19048.0,19045.0,0.72386595]
[1673607451179,0.75763036,19048.0,19046.0,0.70967105]
[1673607451448,0.6236082,19048.0,19046.0,0.70967105]
[1673607451709,0.56196523,19049.0,19047.0,0.61028832]
[1673607452503,0.00129941,19049.0,19047.0,0.61028832]
[1673607452798,0.00129941,19049.0,19048.0,0.336054]
[1673607453340,0.00129941,19049.0,19048.0,0.736054]
[1673607453605,0.00129941,19049.0,19048.0,0.436054]
[1673607454126,0.00129941,19049.0,19048.0,0.95986559]
[1673607455435,0.00129941,19049.0,19048.0,1.25986559]
[1673607455692,0.00129941,19049.0,19048.0,0.95986559]
[1673607456221,0.00129941,19049.0,19048.0,0.736054]
[1673607456502,0.67643933,19050.0,19049.0,0.80504137]
[1673607456787,0.67643933,19050.0,19049.0,1.43259537]
[1673607457060,0.67643933,19050.0,19049.0,1.06395537]
[1673607457564,0.67643933,19050.0,19049.0,0.3284429]
[1673607457565,1.3722055,19050.0,19049.0,0.3284429]
[1673607457570,1.38121003,19050.0,19049.0,0.0008889]
[1673607457828,0.67643933,19050.0,19049.0,0.0008889]
[1673607458097,0.77643933,19050.0,19049.0,0.0008889]
[1673607458370,1.30951487,19050.0,19049.0,0.0008889]
[1673607459694,0.81046149,19050.0,19049.0,0.0008889]
[1673607460025,1.10691298,19050.0,19049.0,0.0008889]
[1673607460276,0.97289082,19050.0,19049.0,0.0008889]
[1673607460533,1.40691298,19050.0,19045.0,0.00019]
[1673607460826,0.1655,19046.0,19045.0,0.00019]
[1673607461079,0.29952216,19046.0,19045.0,0.00019]
[1673607461359,0.29952216,19046.0,19042.0,0.51115672]
[1673607461617,0.29952216,19046.0,19042.0,0.00389467]
[1673607461618,0.1655,19043.0,19042.0,0.00389467]
[1673607461873,0.29952216,19043.0,19042.0,0.00389467]
[1673607462408,0.57145707,19042.0,19041.0,0.00389467]
[1673607463429,0.57275969,19042.0,19041.0,0.00389467]
[1673607464172,0.67275969,19042.0,19041.0,0.00389467]
[1673607465181,0.57275969,19042.0,19041.0,0.00389467]
[1673607465920,0.07844262,19042.0,19041.0,0.00389467]
[1673607466175,0.21283688,19042.0,19041.0,0.00389467]
[1673607467931,0.51283688,19042.0,19041.0,0.00389467]
[1673607468484,0.51283688,19042.0,19036.0,0.00381402]
[1673607468485,0.1,19041.0,19036.0,0.00381402]
[1673607468693,0.13402216,19040.0,19036.0,0.00381402]
[1673607468935,0.1646,19038.0,19036.0,0.00381402]
[1673607469183,0.29862216,19038.0,19036.0,0.00381402]
[1673607469434,0.00098632,19040.0,19037.0,0.5730957]
[1673607469689,0.00098632,19040.0,19038.0,0.68002109]
[1673607469932,0.00098632,19040.0,19036.0,0.00381402]
[1673607470195,0.62265965,19039.0,19037.0,0.52998072]
[1673607470948,0.62265965,19039.0,19038.0,0.1]
[1673607471194,0.62265965,19039.0,19037.0,0.52998072]
[1673607471450,0.58070466,19039.0,19037.0,0.52998072]
[1673607472449,0.71472682,19039.0,19036.0,0.00381402]
[1673607472699,0.29952216,19038.0,19036.0,0.00381402]
[1673607472949,0.1,19037.0,19036.0,0.00381402]
[1673607474964,0.74232181,19037.0,19036.0,0.00381402]
[1673607476180,0.20078218,19037.0,19036.0,0.00381402]
[1673607476403,0.2655,19037.0,19036.0,0.00381402]
[1673607476927,0.94118466,19037.0,19036.0,0.00381402]
[1673607477187,0.2655,19037.0,19036.0,0.00381402]
[1673607477974,0.7144105,19037.0,19036.0,0.00381402]
[1673607478232,0.5489105,19037.0,19036.0,0.00381402]
[1673607478776,0.06489105,19037.0,19036.0,0.00381402]
[1673607479042,0.3,19037.0,19036.0,0.00381402]
[1673607479296,0.1,19037.0,19036.0,0.00381402]
[1673607480345,0.70728549,19037.0,19036.0,0.00381402]
[1673607481131,0.69824377,19038.0,19036.0,0.00381402]
[1673607481938,0.6231,19039.0,19036.0,0.90896935]
[1673607482200,1.28643325,19039.0,19037.0,0.1]
[1673607482723,1.28643325,19039.0,19036.0,0.90896935]
[1673607483100,0.6231,19039.0,19036.0,0.69866441]
[1673607483252,1.30229832,19039.0,19036.0,0.69866441]
[1673607483520,0.54956675,19038.0,19036.0,0.69866441]
[1673607483804,0.55086772,19038.0,19036.0,0.69866441]
[1673607484042,0.68488988,19038.0,19036.0,0.00381402]
[1673607484313,0.2527199,19038.0,19036.0,0.00381402]
[1673607484560,0.67278613,19038.0,19036.0,0.00381402]
[1673607484826,0.1,19037.0,19036.0,0.00381402]
[1673607485882,0.7115399,19037.0,19036.0,0.00381402]
[1673607486669,0.1,19037.0,19036.0,0.00381402]
[1673607486947,0.1201301,19037.0,19036.0,0.00381402]
[1673607487449,0.4201301,19037.0,19036.0,0.00381402]
[1673607488772,0.4201301,19037.0,19036.0,0.0025796]
[1673607489839,0.9463628,19037.0,19036.0,0.0025796]
[1673607490098,0.1,19036.0,19032.0,0.00019]
[1673607490359,0.1,19034.0,19032.0,0.00019]
[1673607490621,0.23402216,19034.0,19032.0,0.00019]
[1673607490933,0.23402216,19034.0,19030.0,0.00377463]
[1673607491154,0.1655,19033.0,19030.0,0.00377463]
[1673607491414,0.650186,19033.0,19028.0,0.55908392]
[1673607491693,0.78420816,19033.0,19031.0,0.02770595]
[1673607491934,0.650186,19033.0,19031.0,0.02770595]
[1673607494062,0.07511698,19033.0,19031.0,0.02770595]
[1673607494330,0.6860378,19033.0,19031.0,0.02770595]
[1673607494578,0.1,19032.0,19031.0,0.02770595]
[1673607495363,0.66234945,19033.0,19031.0,0.02770595]
[1673607495889,0.56234945,19033.0,19031.0,0.61839348]
[1673607496205,0.0009838,19034.0,19032.0,0.50338627]
[1673607496416,0.70337616,19034.0,19032.0,0.50338627]
[1673607496677,0.70239236,19034.0,19031.0,0.02770595]
[1673607496935,0.61311782,19032.0,19031.0,0.02770595]
[1673607498203,0.61311782,19032.0,19028.0,0.18932675]
[1673607498204,0.1,19031.0,19028.0,0.18932675]
[1673607498519,0.1,19031.0,19027.0,0.1]
[1673607498520,0.23402216,19031.0,19027.0,0.1]
[1673607498856,0.68433627,19030.0,19027.0,0.60220029]
[1673607499041,0.81835843,19030.0,19027.0,0.60220029]
[1673607499579,0.68433627,19030.0,19027.0,0.60220029]
[1673607501410,0.68433627,19030.0,19027.0,0.50220029]
[1673607503270,0.00095579,19032.0,19028.0,0.21030494]
[1673607503575,0.52913466,19032.0,19029.0,0.327554]
[1673607503814,0.56536641,19031.0,19028.0,0.51530363]
[1673607504161,0.0012961,19030.0,19028.0,0.51530363]
[1673607504655,0.0012961,19030.0,19026.0,0.00532985]
[1673607504656,0.13402216,19029.0,19026.0,0.00532985]
[1673607504922,0.14742438,19028.0,19026.0,0.00532985]
[1673607505707,0.1,19027.0,19026.0,0.00532985]
[1673607507027,0.6388597,19027.0,19026.0,0.00532985]
[1673607509204,0.1,19027.0,19026.0,0.00532985]
[1673607509939,0.2547,19027.0,19026.0,0.00532985]
[1673607510197,0.36796025,19027.0,19026.0,0.00532985]
[1673607510455,0.66796025,19027.0,19026.0,0.00532985]
[1673607510968,0.36796025,19027.0,19026.0,0.00532985]
[1673607511233,0.66796025,19027.0,19026.0,0.00532985]
[1673607512018,0.08246,19026.0,19025.0,0.00419805]
[1673607512254,0.08246,19026.0,19022.0,0.00551985]
[1673607512255,0.9086927,19026.0,19022.0,0.00551985]
[1673607512509,0.1537,19024.0,19022.0,0.21582479]
[1673607512771,0.61408479,19026.0,19023.0,0.66471476]
[1673607513031,0.66902493,19026.0,19023.0,0.8750197]
[1673607513284,0.66902493,19026.0,19023.0,0.66471476]
[1673607513558,0.66804052,19026.0,19023.0,0.66471476]
[1673607514078,0.35452621,19026.0,19022.0,0.00532985]
[1673607514340,0.28772216,19026.0,19022.0,0.00532985]
[1673607514816,0.70682125,19025.0,19022.0,0.00532985]
[1673607514817,0.4,19025.0,19022.0,0.00532985]
[1673607515104,0.53402216,19025.0,19022.0,0.00532985]
[1673607515340,1.0309,19025.0,19022.0,0.00532985]
[1673607515617,0.25669,19024.0,19022.0,0.00532985]
[1673607515939,0.1,19023.0,19022.0,0.00532985]
[1673607517180,0.72152025,19023.0,19022.0,0.00532985]
[1673607517461,0.62152025,19023.0,19022.0,0.31563479]
[1673607517737,1.30439906,19025.0,19022.0,0.60317866]
[1673607518004,0.0009831,19026.0,19023.0,0.21030494]
[1673607518290,0.0009831,19026.0,19024.0,0.53785894]
[1673607518567,0.0009831,19026.0,19025.0,0.427554]
[1673607518826,0.64732125,19027.0,19025.0,0.1]
[1673607519114,0.6233563,19026.0,19023.0,0.1547]
[1673607519381,0.52976406,19024.0,19022.0,0.56251469]
[1673607519651,0.66378622,19024.0,19022.0,0.00532985]
[1673607520209,0.52976406,19024.0,19022.0,0.00532985]
[1673607520750,0.52976406,19024.0,19022.0,0.56929127]
[1673607521018,0.554987,19026.0,19023.0,0.61627672]
[1673607521280,0.00097668,19026.0,19024.0,0.21030494]
[1673607521566,0.00097668,19026.0,19025.0,0.427554]
[1673607521824,0.00097668,19026.0,19024.0,0.36500494]
[1673607521825,0.51675972,19027.0,19024.0,0.1547]
[1673607522082,0.63165853,19026.0,19023.0,0.5622675]
[1673607522818,0.61554466,19025.0,19022.0,0.00532985]
[1673607522845,0.61554466,19025.0,19022.0,0.52302434]
[1673607523077,0.74956682,19025.0,19023.0,0.1]
[1673607523351,0.61554466,19025.0,19023.0,0.60176126]
[1673607523613,0.61554466,19025.0,19023.0,0.50176126]
[1673607523886,0.67719771,19025.0,19022.0,0.00532985]
[1673607524157,0.74682382,19025.0,19022.0,0.00532985]
[1673607524418,0.10129615,19024.0,19022.0,0.00532985]
[1673607524680,0.00129615,19024.0,19022.0,0.57578281]
[1673607525221,0.63976778,19024.0,19022.0,0.57578281]
[1673607525491,0.73976778,19024.0,19022.0,0.00532985]
[1673607525753,0.39001831,19024.0,19022.0,0.00532985]
[1673607526011,0.1547,19023.0,19022.0,0.00532985]
[1673607526289,0.92478102,19023.0,19022.0,0.00532985]
[1673607526564,0.88579592,19023.0,19022.0,0.00532985]
[1673607526849,0.73109592,19023.0,19022.0,0.00532985]
[1673607527116,0.10129615,19024.0,19022.0,0.00532985]
[1673607527641,0.62241728,19024.0,19022.0,0.00532985]
[1673607528488,0.52241728,19024.0,19022.0,0.00532985]
[1673607528801,0.52241728,19024.0,19022.0,0.67117225]
[1673607529060,0.00129615,19024.0,19023.0,0.65941959]
[1673607529358,0.00129615,19024.0,19023.0,0.98697359]
[1673607529911,0.53811697,19023.0,19022.0,0.00532985]
[1673607530517,0.16734353,19023.0,19022.0,0.00532985]
[1673607530704,0.6468393,19023.0,19022.0,0.00532985]
[1673607531228,0.5468393,19023.0,19022.0,0.00532985]
[1673607531778,0.70639615,19024.0,19022.0,0.29277479]
[1673607531779,0.00129615,19024.0,19022.0,0.29277479]
[1673607532045,0.00129615,19024.0,19022.0,0.21563479]
[1673607532343,0.00129615,19024.0,19023.0,0.427554]
[1673607533135,0.00129615,19024.0,19023.0,1.09862629]
[1673607535088,0.00129615,19024.0,19023.0,0.892554]
[1673607535358,0.00129615,19024.0,19023.0,0.601054]
[1673607535624,6e-05,19027.0,19024.0,0.00090244]
[1673607536115,6e-05,19027.0,19025.0,0.94641984]
[1673607536116,6e-05,19027.0,19026.0,0.1]
[1673607536397,0.70317585,19029.0,19026.0,0.427554]
[1673607536662,0.70317585,19029.0,19027.0,0.327554]
[1673607536924,0.70317585,19029.0,19026.0,0.31030494]
[1673607537223,0.70317585,19029.0,19026.0,0.1]
[1673607537702,0.00099054,19029.0,19027.0,0.53785894]
[1673607537969,0.00099054,19029.0,19028.0,0.327554]
[1673607538243,0.01560612,19030.0,19029.0,0.1]
[1673607538538,0.01560612,19030.0,19029.0,1.13374041]
[1673607539334,0.60531727,19030.0,19028.0,0.1]
[1673607539595,0.73933943,19030.0,19027.0,0.63685906]
[1673607540113,0.60531727,19030.0,19028.0,0.1]
[1673607540654,0.60531727,19030.0,19027.0,0.63685906]
[1673607541200,0.5540001,19029.0,19027.0,0.63685906]
[1673607542254,0.13402216,19029.0,19024.0,0.10090244]
[1673607542736,0.13402216,19028.0,19024.0,0.63825878]
[1673607543018,0.13402216,19027.0,19025.0,0.1]
[1673607543264,0.13402216,19027.0,19024.0,0.63735634]
[1673607543534,0.15742438,19027.0,19024.0,0.63735634]
[1673607543797,0.67713403,19029.0,19024.0,0.21030494]
[1673607544066,0.52952009,19028.0,19025.0,0.87500854]
[1673607544336,0.52952009,19028.0,19026.0,0.1]
[1673607544609,0.00130269,19027.0,19026.0,0.1]
[1673607545699,0.01579612,19030.0,19026.0,0.427554]
[1673607545952,0.57090791,19030.0,19027.0,0.53785894]
[1673607546217,0.57090791,19030.0,19028.0,0.1]
[1673607546524,0.06511399,19030.0,19028.0,0.1]
[1673607546783,0.06511399,19030.0,19028.0,0.70024883]
[1673607547067,0.06511399,19030.0,19028.0,0.60024883]
[1673607547321,0.58165798,19029.0,19026.0,0.1]
[1673607547568,0.58165798,19029.0,19026.0,0.80319833]
[1673607547569,0.71568014,19029.0,19026.0,0.80319833]
[1673607547817,0.71068014,19029.0,19026.0,0.80319833]
[1673607548598,0.57665798,19029.0,19026.0,0.80319833]
[1673607549606,0.71068014,19029.0,19026.0,0.70319833]
[1673607549893,0.57665798,19029.0,19026.0,0.70319833]
[1673607550155,0.06492399,19030.0,19028.0,0.1]
[1673607550432,0.06492399,19030.0,19029.0,0.327554]
[1673607550673,0.01560612,19030.0,19029.0,0.53785894]
[1673607550955,0.01560612,19030.0,19029.0,0.427554]
[1673607551195,0.01560612,19030.0,19029.0,0.727554]
[1673607551756,0.01560612,19030.0,19029.0,1.07938738]
[1673607552781,0.01560612,19030.0,19029.0,0.727554]
[1673607553086,0.01560612,19030.0,19029.0,1.033954]
[1673607554448,0.01560612,19030.0,19029.0,1.03492757]
[1673607554717,0.01560612,19030.0,19029.0,1.51412049]
[1673607555554,0.01560612,19030.0,19029.0,2.28752049]
[1673607555832,0.01612751,19032.0,19030.0,0.11091191]
[1673607556093,0.01612751,19032.0,19031.0,0.482154]
[1673607556366,0.01612751,19032.0,19031.0,0.882154]
[1673607556899,0.01612751,19032.0,19031.0,1.51594692]
[1673607557920,0.01612751,19032.0,19031.0,1.036754]
[1673607558254,0.01612751,19032.0,19031.0,1.51594692]
[1673607559860,0.01612751,19032.0,19031.0,1.68769154]
[1673607560140,0.01612751,19032.0,19031.0,1.38769154]
[1673607560417,0.01612751,19032.0,19031.0,1.32923372]
[1673607561075,0.01612751,19032.0,19031.0,0.736754]
[1673607561549,0.01612751,19032.0,19031.0,1.036754]
[1673607561998,0.01612751,19032.0,19031.0,0.882154]
[1673607563653,0.01612751,19032.0,19031.0,0.890654]
[1673607564553,0.06389688,19036.0,19032.0,0.1]
[1673607564787,0.00019,19035.0,19033.0,1.01575451]
[1673607564996,0.00019,19035.0,19034.0,1.51594692]
[1673607565214,0.00019,19035.0,19034.0,1.036754]
[1673607565436,0.00019,19035.0,19034.0,1.51594692]
[1673607565652,0.00019,19035.0,19034.0,1.036754]
[1673607565880,0.00019,19035.0,19034.0,0.582154]
[1673607566120,0.01543793,19036.0,19034.0,0.882154]
[1673607566346,0.01543793,19036.0,19035.0,0.327554]
[1673607566849,0.01543793,19036.0,19035.0,0.480754]
[1673607567296,0.01543793,19036.0,19035.0,1.35993826]
[1673607567529,0.01543793,19036.0,19035.0,1.05993826]
[1673607567963,0.01543793,19036.0,19035.0,1.35993826]
[1673607568189,0.01543793,19036.0,19035.0,1.05993826]
[1673607568836,0.01543793,19036.0,19035.0,1.06091152]
[1673607569375,0.01543793,19036.0,19035.0,0.90771152]
[1673607569630,0.01543793,19036.0,19035.0,1.20771152]
[1673607569906,0.01543793,19036.0,19035.0,1.30771152]
[1673607572025,0.01543793,19036.0,19035.0,0.72852726]
[1673607572598,0.01543793,19036.0,19035.0,1.36614692]
[1673607572813,0.01543793,19036.0,19035.0,1.03492726]
[1673607574695,0.01543793,19036.0,19035.0,1.56115996]
[1673607574958,0.01607977,19038.0,19036.0,0.10748989]
[1673607575269,0.01607977,19038.0,19037.0,1.33297962]
[1673607575530,0.01607977,19038.0,19037.0,1.64107962]
[1673607575794,0.01607977,19041.0,19039.0,0.40567321]
[1673607576054,0.01607977,19041.0,19040.0,2.51397456]
[1673607576646,0.01607977,19041.0,19040.0,2.30366962]
[1673607577196,7.7e-07,19041.0,19040.0,2.30366962]
[1673607577458,0.01638916,19042.0,19040.0,2.30366962]